fUSD/lending_fUSD_20241221
["ID","MTS","AMOUNT","RATE_DAILY","PERIOD"]
[346171039,1734763873643,-500.0,0.00021094,2]
[346171040,1734763873655,-503.11,0.00021094,2]
[346171041,1734763873667,-500.0,0.00021094,2]
[346171042,1734763873678,-648.38,0.00021094,2]
[346171043,1734763873690,-500.0,0.00021094,2]
[346171044,1734763873701,-500.0,0.00021094,2]
[346171045,1734763873713,-534.85,0.00021094,2]
[346171046,1734763873724,-500.0,0.00021094,2]
[346171047,1734763873737,-578.88,0.00021094,2]
[346171048,1734763873748,-500.0,0.00021094,2]
[346171049,1734763873760,-500.0,0.00021094,2]
[346171050,1734763873771,-546.17,0.00021094,2]
[346171051,1734763873782,-500.0,0.00021094,2]
[346171052,1734763873793,-520.15,0.00021094,2]
[346171053,1734763873805,-500.0,0.00021094,2]
[346171054,1734763873816,-628.26,0.00021094,2]
[346171055,1734763873839,-529.73,0.00021094,2]
[346171056,1734763873851,-1052.04,0.00021094,2]
[346171057,1734763873864,-500.0,0.00021094,2]
[346171058,1734763873875,-607.01,0.00021094,2]
[346171059,1734763873887,-752.7,0.00021094,2]
[346171060,1734763873899,-944.17,0.00021094,2]
[346171061,1734763873910,-716.64,0.00021094,2]
[346171062,1734763873921,-829.23,0.00021094,2]
[346171063,1734763873932,-539.95,0.00021094,2]
[346171064,1734763873944,-739.19,0.00021094,2]
[346171065,1734763873955,-783.63,0.00021094,2]
[346171066,1734763873966,-500.0,0.00021094,2]
[346171067,1734763873978,-500.0,0.00021094,2]
[346171068,1734763873989,-1210.89,0.00021094,2]
[346171069,1734763873999,-512.97,0.00021094,2]
[346171070,1734763874011,-1023.43,0.00021094,2]
[346171071,1734763874022,-529.47670512,0.00021094,2]
[346171072,1734763874033,-500.0,0.00021094,2]
[346171073,1734763874047,-658.92,0.00021094,2]
[346171074,1734763874058,-985.94,0.00021094,2]
[346171075,1734763874072,-347.5385189,0.00021095,2]
[346171076,1734763874083,-522.13,0.00021095,2]
[346171077,1734763874094,-526.95,0.00021095,2]
[346171078,1734763874107,-500.0,0.00021095,2]
[346171079,1734763874118,-500.0,0.00021095,2]
[346171080,1734763874130,-753.3,0.00021095,2]
[346171081,1734763874141,-500.0,0.00021095,2]
[346171082,1734763874151,-500.0,0.00021095,2]
[346171083,1734763874162,-565.32331394,0.00021095,2]
[346171084,1734763874173,-500.0,0.00021095,2]
[346171085,1734763874184,-500.0,0.00021095,2]
[346171086,1734763874195,-500.0,0.00021095,2]
[346171087,1734763874208,-500.0,0.00021095,2]
[346171088,1734763874218,-817.72,0.00021095,2]
[346171089,1734763874229,-500.0,0.00021095,2]
[346171090,1734763874240,-500.0,0.00021095,2]
[346171091,1734763874252,-500.0,0.00021095,2]
[346171092,1734763874267,-512.1,0.00021095,2]
[346171093,1734763874278,-500.0,0.00021095,2]
[346171094,1734763874289,-619.92,0.00021095,2]
[346171095,1734763874302,-537.13481976,0.00021095,2]
[346171096,1734763874314,-500.0,0.00021095,2]
[346171097,1734763874330,-674.16,0.00021095,2]
[346171098,1734763874342,-500.0,0.00021095,2]
[346171099,1734763874356,-781.83,0.00021095,2]
[346171100,1734763874367,-500.0,0.00021095,2]
[346171101,1734763874378,-500.0,0.00021095,2]
[346171102,1734763874389,-500.0,0.00021095,2]
[346171103,1734763874401,-646.79,0.00021095,2]
[346171104,1734763874413,-1000.0,0.00021095,30]
[346171105,1734763874423,-759.27,0.00021095,2]
[346171106,1734763874434,-500.0,0.00021095,2]
[346171107,1734763874445,-535.16,0.00021095,2]
[346171108,1734763874460,-500.0,0.00021095,2]
[346171109,1734763874471,-500.0,0.00021095,2]
[346171110,1734763874482,-1140.19,0.00021095,2]
[346171111,1734763874493,-500.0,0.00021095,2]
[346171112,1734763874503,-504.11,0.00021095,2]
[346171113,1734763874514,-500.0,0.00021095,2]
[346171114,1734763874525,-713.15,0.00021095,2]
[346171115,1734763874535,-721.59,0.00021095,2]
[346171116,1734763874546,-500.0,0.00021095,2]
[346171117,1734763874557,-500.0,0.00021095,2]
[346171118,1734763874572,-1544.805157,0.00021095,2]
[346171119,1734763874582,-500.0,0.00021095,2]
[346171120,1734763874593,-925.78,0.00021095,2]
[346171121,1734763874603,-500.0,0.00021095,2]
[346171122,1734763874615,-500.0,0.00021095,2]
[346171123,1734763874626,-500.0,0.00021095,2]
[346171124,1734763874637,-152.502649,0.00021095,2]
[346171125,1734763874647,-1057.2639,0.00021095,2]
[346171126,1734763874658,-500.0,0.00021095,2]
[346171127,1734763874668,-500.0,0.00021095,2]
[346171128,1734763874680,-500.0,0.00021095,2]
[346171129,1734763874690,-549.38,0.00021095,2]
[346171130,1734763874700,-500.0,0.00021095,2]
[346171131,1734763874711,-500.0,0.00021095,2]
[346171132,1734763874722,-500.0,0.00021095,2]
[346171133,1734763874736,-575.46,0.00021095,2]
[346171134,1734763874747,-792.53,0.00021095,2]
[346171135,1734763874760,-500.0,0.00021095,2]
[346171136,1734763874774,-500.0,0.00021095,2]
[346171137,1734763874786,-635.22,0.00021095,2]
[346171138,1734763874797,-880.04,0.00021095,2]
[346171139,1734763874807,-500.0,0.00021095,2]
[346171140,1734763874822,-500.0,0.00021095,2]
[346171141,1734763874833,-726.35,0.00021095,2]
[346171142,1734763874844,-1008.16,0.00021095,2]
[346171143,1734763874854,-500.0,0.00021095,2]
[346171144,1734763874865,-500.0,0.00021095,2]
[346171145,1734763874877,-589.35,0.00021095,2]
[346171146,1734763874888,-811.84,0.00021095,2]
[346171147,1734763874898,-500.0,0.00021095,2]
[346171148,1734763874909,-755.42,0.00021095,2]
[346171149,1734763874919,-500.0,0.00021095,2]
[346171150,1734763874930,-2228.7,0.00021095,2]
[346171151,1734763874940,-201.46390813,0.00021095,2]
[346171152,1734763874951,-500.0,0.00021095,2]
[346171153,1734763874962,-502.76,0.00021095,2]
[346171154,1734763874974,-889.66,0.00021095,2]
[346171155,1734763874984,-995.12,0.00021095,2]
[346171156,1734763874995,-999.33,0.00021095,2]
[346171157,1734763875005,-500.0,0.00021095,2]
[346171158,1734763875016,-500.0,0.00021095,2]
[346171159,1734763875027,-500.0,0.00021095,2]
[346171160,1734763875038,-511.02,0.00021095,2]
[346171161,1734763875048,-500.0,0.00021095,2]
[346171162,1734763875060,-1503.52,0.00021095,2]
[346171163,1734763875073,-826.38,0.00021095,2]
[346171164,1734763875084,-526.88,0.00021095,2]
[346171165,1734763875094,-500.0,0.00021095,2]
[346171166,1734763875104,-845.27,0.00021095,2]
[346171167,1734763875114,-1849.16,0.00021095,2]
[346171168,1734763875124,-623.84,0.00021095,2]
[346171169,1734763875135,-283.45349819,0.00021095,2]
[346171170,1734763875145,-500.0,0.00021095,2]
[346171171,1734763875155,-658.52,0.00021095,2]
[346171172,1734763875165,-606.39,0.00021095,2]
[346171173,1734763875175,-500.0,0.00021095,2]
[346171174,1734763875186,-669.5,0.00021095,2]
[346171175,1734763875196,-512.46274822,0.00021095,2]
[346171176,1734763875205,-5337.2,0.00021095,2]
[346171177,1734763875215,-1119.97,0.00021095,2]
[346171178,1734763875224,-1317.83,0.00021095,2]
[346171179,1734763875234,-3834.33,0.00021095,2]
[346171180,1734763875244,-1210.11,0.00021095,2]
[346171181,1734763875254,-500.0,0.00021095,2]
[346171182,1734763875265,-500.0,0.00021095,2]
[346171183,1734763875276,-3128.08,0.00021095,2]
[346171184,1734763875285,-500.0,0.00021095,2]
[346171185,1734763875295,-500.0,0.00021095,2]
[346171186,1734763875307,-3039.32,0.00021095,2]
[346171187,1734763875317,-543.49,0.00021095,2]
[346171188,1734763875329,-1847.86,0.00021095,2]
[346171189,1734763875338,-500.0,0.00021095,2]
[346171190,1734763875348,-805.91,0.00021095,2]
[346171191,1734763875358,-500.0,0.00021095,2]
[346171192,1734763875367,-623.92,0.00021095,2]
[346171193,1734763875377,-2527.65,0.00021095,2]
[346171194,1734763875386,-506.6,0.00021095,2]
[346171195,1734763875396,-500.0,0.00021095,2]
[346171196,1734763875405,-947.44,0.00021095,2]
[346171197,1734763875415,-944.1,0.00021095,2]
[346171198,1734763875424,-500.0,0.00021095,2]
[346171199,1734763875434,-500.0,0.00021095,2]
[346171200,1734763875443,-500.0,0.00021095,2]
[346171201,1734763875452,-500.0,0.00021095,2]
[346171202,1734763875462,-500.0,0.00021095,2]
[346171203,1734763875472,-861.65,0.00021095,2]
[346171204,1734763875481,-500.0,0.00021095,2]
[346171205,1734763875491,-540.73,0.00021095,2]
[346171206,1734763875500,-572.84,0.00021095,2]
[346171207,1734763875510,-582.48,0.00021095,2]
[346171208,1734763875519,-588.74,0.00021095,2]
[346171209,1734763875530,-500.0,0.00021095,2]
[346171210,1734763875539,-703.48,0.00021095,2]
[346171211,1734763875549,-500.0,0.00021095,2]
[346171212,1734763875559,-500.0,0.00021095,2]
[346171213,1734763875572,-901.63,0.00021095,2]
[346171214,1734763875582,-997.55,0.00021095,2]
[346171215,1734763875592,-799.68,0.00021095,2]
[346171216,1734763875791,-500.0,0.00021095,2]
[346171217,1734763875801,-561.21,0.00021095,2]
[346171218,1734763875811,-1229.39,0.00021095,2]
[346171219,1734763875823,-500.0,0.00021095,2]
[346171220,1734763875833,-632.53,0.00021095,2]
[346171221,1734763875843,-1931.34,0.00021095,2]
[346171222,1734763875852,-500.0,0.00021095,2]
[346171223,1734763875862,-1470.44,0.00021095,2]
[346171224,1734763875872,-500.0,0.00021095,2]
[346171225,1734763875882,-500.0,0.00021095,2]
[346171226,1734763875891,-500.0,0.00021095,2]
[346171227,1734763875901,-736.6,0.00021095,2]
[346171228,1734763875911,-500.0,0.00021095,2]
[346171229,1734763875922,-703.2,0.00021095,2]
[346171230,1734763875932,-1406.58,0.00021095,2]
[346171231,1734763875941,-1544.85,0.00021095,2]
[346171232,1734763875951,-665.66,0.00021095,2]
[346171233,1734763875960,-514.28,0.00021095,2]
[346171234,1734763875969,-500.0,0.00021095,2]
[346171235,1734763875978,-795.88,0.00021095,2]
[346171236,1734763875988,-500.0,0.00021095,2]
[346171237,1734763875997,-761.21,0.00021095,2]
[346171238,1734763876007,-1739.03,0.00021095,2]
[346171239,1734763876017,-702.19,0.00021095,2]
[346171240,1734763876027,-500.0,0.00021095,2]
[346171241,1734763876037,-1021.76,0.00021095,2]
[346171242,1734763876047,-500.0,0.00021095,2]
[346171243,1734763876057,-500.0,0.00021095,2]
[346171244,1734763876067,-859.2,0.00021095,2]
[346171245,1734763876080,-1193.73,0.00021095,2]
[346171246,1734763876092,-186.2,0.00021095,2]
[346171247,1734763876103,-358.44495644,0.00021095,2]
[346171248,1734763876114,-632.4,0.00021095,2]
[346171249,1734763876125,-2294.66,0.00021095,2]
[346171250,1734763876137,-806.9,0.00021095,2]
[346171251,1734763876148,-1021.18,0.00021095,2]
[346171252,1734763876157,-1013.35,0.00021095,2]
[346171253,1734763876167,-199.72302543,0.00021095,2]
[346171254,1734763876177,-2927.04,0.00021095,2]
[346171255,1734763876188,-632.58,0.00021095,2]
[346171256,1734763876198,-500.0,0.00021095,2]
[346171257,1734763876208,-518.58,0.00021095,2]
[346171258,1734763876218,-647.88,0.00021095,2]
[346171259,1734763876228,-4561.25,0.00021095,2]
[346171260,1734763876238,-872.93,0.00021095,2]
[346171261,1734763876248,-885.58,0.00021095,2]
[346171262,1734763876263,-1603.4,0.00021095,2]
[346171263,1734763876273,-500.0,0.00021095,2]
[346171264,1734763876282,-1346.86,0.00021095,2]
[346171265,1734763876293,-500.0,0.00021095,2]
[346171266,1734763876305,-500.0,0.00021095,2]
[346171267,1734763876315,-763.45,0.00021095,2]
[346171268,1734763876330,-984.85,0.00021095,2]
[346171269,1734763876341,-500.0,0.00021095,2]
[346171270,1734763876352,-873.04,0.00021095,2]
[346171271,1734763876363,-500.0,0.00021095,2]
[346171272,1734763876373,-500.0,0.00021095,2]
[346171273,1734763876383,-620.97,0.00021095,2]
[346171274,1734763876393,-733.9,0.00021095,2]
[346171275,1734763876404,-500.0,0.00021095,2]
[346171276,1734763876415,-1060.44,0.00021095,2]
[346171277,1734763876425,-1223.12,0.00021095,2]
[346171278,1734763876434,-500.0,0.00021095,2]
[346171279,1734763876444,-633.71,0.00021095,2]
[346171280,1734763876453,-1063.84,0.00021095,2]
[346171281,1734763876463,-346.90410519,0.00021095,2]
[346171282,1734763876476,-455.31546133,0.00021095,2]
[346171283,1734763876486,-6034.63,0.00021095,2]
[346171284,1734763876496,-842.49,0.00021095,2]
[346171285,1734763876506,-500.0,0.00021095,2]
[346171286,1734763876515,-500.0,0.00021095,2]
[346171287,1734763876526,-7492.81,0.00021095,2]
[346171288,1734763876537,-500.0,0.00021095,2]
[346171289,1734763876549,-744.03,0.00021095,2]
[346171290,1734763876559,-946.91,0.00021095,2]
[346171291,1734763876572,-512.74,0.00021095,2]
[346171292,1734763876582,-630.38,0.00021095,2]
[346171293,1734763876592,-894.54,0.00021095,2]
[346171294,1734763876602,-500.0,0.00021095,2]
[346171295,1734763876612,-513.14,0.00021095,2]
[346171296,1734763876622,-500.0,0.00021095,2]
[346171297,1734763876632,-569.68,0.00021095,2]
[346171298,1734763876642,-2074.71,0.00021095,2]
[346171299,1734763876651,-1539.27,0.00021095,2]
[346171300,1734763876661,-500.0,0.00021095,2]
[346171301,1734763876670,-860.01,0.00021095,2]
[346171302,1734763876680,-925.87,0.00021095,2]
[346171303,1734763876690,-500.0,0.00021095,2]
[346171304,1734763876699,-500.0,0.00021095,2]
[346171305,1734763876709,-2324.7,0.00021095,2]
[346171306,1734763876719,-1111.8,0.00021095,2]
[346171307,1734763876729,-500.0,0.00021095,2]
[346171308,1734763876739,-500.0,0.00021095,2]
[346171309,1734763876749,-200.0,0.00021096,2]
[346171310,1734763876759,-4000.0,0.00021132,2]
[346171311,1734763876769,-150.0,0.00021144,4]
[346171312,1734763876779,-188.78610529,0.000212,2]
[346171313,1734763876788,-518.13600266,0.00021273,2]
[346171314,1734763876798,-501.02786621,0.00021273,2]
[346171315,1734763876808,-500.0,0.00021273,2]
[346171316,1734763876821,-500.0,0.00021273,2]
[346171317,1734763876831,-500.0,0.00021273,2]
[346171318,1734763876840,-500.0,0.00021273,2]
[346171319,1734763876850,-2722.18434235,0.00021291,2]
[346171320,1734763876860,-2838.1419,0.00021293,2]
[346171321,1734763876870,-803.79,0.00021294,2]
[346171322,1734763876879,-312.5398158,0.00021294,2]
[346171323,1734763876889,-1593331.4521,0.00021295,2]
[346171324,1734763876898,-2942.0,0.000213,2]
[346171325,1734763876908,-928.92,0.00021309,2]
[346171326,1734763876918,-500.0,0.00021368,2]
[346171327,1734763876927,-500.0,0.00021368,2]
[346171328,1734763876936,-787.7,0.00021368,2]
[346171329,1734763876947,-500.0,0.00021368,2]
[346171330,1734763876956,-722.15,0.00021368,2]
[346171331,1734763876966,-598.48,0.00021368,2]
[346171332,1734763876975,-589.12,0.00021368,2]
[346171333,1734763876985,-746.52,0.00021368,2]
[346171334,1734763876994,-500.0,0.00021368,2]
[346171335,1734763877005,-500.0,0.00021368,2]
[346171336,1734763877018,-500.0,0.00021368,2]
[346171337,1734763877027,-579.24,0.00021368,2]
[346171338,1734763877036,-213.07822705,0.00021368,2]
[346171339,1734763877046,-709.84,0.00021368,2]
[346171340,1734763877055,-704.07,0.00021368,2]
[346171341,1734763877064,-656.8,0.00021368,2]
[346171342,1734763877077,-772.15,0.00021368,2]
[346171343,1734763877086,-500.0,0.00021368,2]
[346171344,1734763877095,-500.0,0.00021368,2]
[346171345,1734763877104,-500.0,0.00021368,2]
[346171346,1734763877113,-500.0,0.00021368,2]
[346171347,1734763877123,-500.0,0.00021368,2]
[346171348,1734763877132,-1124.77,0.00021368,2]
[346171349,1734763877143,-512.85,0.00021368,2]
[346171350,1734763877154,-1044.57,0.00021368,2]
[346171351,1734763877165,-577.68,0.00021368,2]
[346171352,1734763877174,-500.0,0.00021368,2]
[346171353,1734763877184,-500.0,0.00021368,2]
[346171354,1734763877193,-687.33,0.00021368,2]
[346171355,1734763877203,-727.24,0.00021368,2]
[346171356,1734763877212,-500.0,0.00021368,2]
[346171357,1734763877221,-500.0,0.00021368,2]
[346171358,1734763877231,-671.56,0.00021368,2]
[346171359,1734763877240,-500.0,0.00021368,2]
[346171360,1734763877250,-604.9,0.00021368,2]
[346171361,1734763877261,-500.0,0.00021368,2]
[346171362,1734763877271,-503.11,0.00021368,2]
[346171363,1734763877282,-500.0,0.00021368,2]
[346171364,1734763877292,-648.38,0.00021368,2]
[346171365,1734763877303,-290.62234864,0.00021368,2]
[346171366,1734763877313,-534.85,0.00021368,2]
[346171367,1734763877324,-500.0,0.00021368,2]
[346171368,1734763877336,-578.88,0.00021368,2]
[346171369,1734763877345,-500.0,0.00021368,2]
[346171370,1734763877354,-500.0,0.00021368,2]
[346171371,1734763877364,-546.17,0.00021368,2]
[346171372,1734763877373,-500.0,0.00021368,2]
[346171373,1734763877382,-520.15,0.00021368,2]
[346171374,1734763877391,-500.0,0.00021368,2]
[346171375,1734763877401,-628.26,0.00021368,2]
[346171376,1734763877411,-529.73,0.00021368,2]
[346171377,1734763877420,-1052.04,0.00021368,2]
[346171378,1734763877429,-500.0,0.00021368,2]
[346171379,1734763877438,-607.01,0.00021368,2]
[346171380,1734763877447,-752.7,0.00021368,2]
[346171381,1734763877456,-944.17,0.00021368,2]
[346171382,1734763877473,-716.64,0.00021368,2]
[346171383,1734763877490,-829.23,0.00021368,2]
[346171384,1734763877504,-539.95,0.00021368,2]
[346171385,1734763877520,-739.19,0.00021368,2]
[346171386,1734763877535,-783.63,0.00021368,2]
[346171387,1734763877550,-500.0,0.00021368,2]
[346171388,1734763877565,-500.0,0.00021368,2]
[346171389,1734763877580,-1210.89,0.00021368,2]
[346171390,1734763877597,-512.97,0.00021368,2]
[346171391,1734763877613,-1023.43,0.00021368,2]
[346171392,1734763877628,-500.0,0.00021368,2]
[346171393,1734763877646,-658.92,0.00021368,2]
[346171394,1734763877663,-985.94,0.00021368,2]
[346171395,1734763877679,-150.0,0.00021368,4]
[346171396,1734763877694,-150.0,0.00021368,4]
[346171397,1734763877710,-522.13,0.00021369,2]
[346171398,1734763877726,-526.95,0.00021369,2]
[346171399,1734763877740,-500.0,0.00021369,2]
[346171400,1734763877752,-500.0,0.00021369,2]
[346171401,1734763877768,-753.3,0.00021369,2]
[346171402,1734763877783,-500.0,0.00021369,2]
[346171403,1734763877795,-500.0,0.00021369,2]
[346171404,1734763877809,-500.0,0.00021369,2]
[346171405,1734763877829,-500.0,0.00021369,2]
[346171406,1734763877842,-500.0,0.00021369,2]
[346171407,1734763877856,-500.0,0.00021369,2]
[346171408,1734763877870,-817.72,0.00021369,2]
[346171409,1734763877884,-500.0,0.00021369,2]
[346171410,1734763877897,-500.0,0.00021369,2]
[346171411,1734763877911,-500.0,0.00021369,2]
[346171412,1734763877924,-619.92,0.00021369,2]
[346171413,1734763877938,-500.0,0.00021369,2]
[346171414,1734763877951,-500.0,0.00021369,2]
[346171415,1734763877964,-674.16,0.00021369,2]
[346171416,1734763877978,-500.0,0.00021369,2]
[346171417,1734763877991,-781.83,0.00021369,2]
[346171418,1734763878005,-500.0,0.00021369,2]
[346171419,1734763878019,-500.0,0.00021369,2]
[346171420,1734763878033,-500.0,0.00021369,2]
[346171421,1734763878046,-646.79,0.00021369,2]
[346171422,1734763878058,-1000.0,0.00021369,30]
[346171423,1734763878072,-759.27,0.00021369,2]
[346171424,1734763878085,-500.0,0.00021369,2]
[346171425,1734763878099,-535.16,0.00021369,2]
[346171426,1734763878113,-500.0,0.00021369,2]
[346171427,1734763878132,-1140.19,0.00021369,2]
[346171428,1734763878146,-504.11,0.00021369,2]
[346171429,1734763878161,-209.32465618,0.00021369,2]
[346171430,1734763878177,-242.77830179,0.00021369,2]
[346171431,1734763878192,-713.15,0.00021369,2]
[346171432,1734763878207,-721.59,0.00021369,2]
[346171433,1734763878224,-500.0,0.00021369,2]
[346171434,1734763878238,-500.0,0.00021369,2]
[346171435,1734763878252,-1544.805157,0.00021369,2]
[346171436,1734763878270,-500.0,0.00021369,2]
[346171437,1734763878283,-925.78,0.00021369,2]
[346171438,1734763878297,-500.0,0.00021369,2]
[346171439,1734763878311,-500.0,0.00021369,2]
[346171440,1734763878328,-500.0,0.00021369,2]
[346171441,1734763878342,-157.564534,0.00021369,2]
[346171442,1734763878356,-1057.2639,0.00021369,2]
[346171443,1734763878369,-500.0,0.00021369,2]
[346171444,1734763878382,-500.0,0.00021369,2]
[346171445,1734763878395,-500.0,0.00021369,2]
[346171446,1734763878408,-549.38,0.00021369,2]
[346171447,1734763878421,-500.0,0.00021369,2]
[346171448,1734763878435,-500.0,0.00021369,2]
[346171449,1734763878448,-500.0,0.00021369,2]
[346171450,1734763878462,-575.46,0.00021369,2]
[346171451,1734763878475,-792.53,0.00021369,2]
[346171452,1734763878488,-500.0,0.00021369,2]
[346171453,1734763878501,-500.0,0.00021369,2]
[346171454,1734763878514,-635.22,0.00021369,2]
[346171455,1734763878528,-880.04,0.00021369,2]
[346171456,1734763878541,-500.0,0.00021369,2]
[346171457,1734763878555,-246.28769107,0.00021369,2]
[346171458,1734763878569,-1008.16,0.00021369,2]
[346171459,1734763878583,-726.35,0.00021369,2]
[346171460,1734763878596,-500.0,0.00021369,2]
[346171461,1734763878609,-528.06939587,0.00021369,2]
[346171462,1734763878621,-589.35,0.00021369,2]
[346171463,1734763878635,-811.84,0.00021369,2]
[346171464,1734763878647,-500.0,0.00021369,2]
[346171465,1734763878660,-755.42,0.00021369,2]
[346171466,1734763878673,-500.0,0.00021369,2]
[346171467,1734763878687,-2228.7,0.00021369,2]
[346171468,1734763878700,-500.0,0.00021369,2]
[346171469,1734763878713,-502.76,0.00021369,2]
[346171470,1734763878727,-889.66,0.00021369,2]
[346171471,1734763878739,-995.12,0.00021369,2]
[346171472,1734763878752,-999.33,0.00021369,2]
[346171473,1734763878765,-500.0,0.00021369,2]
[346171474,1734763878778,-500.0,0.00021369,2]
[346171475,1734763878791,-500.0,0.00021369,2]
[346171476,1734763878804,-511.02,0.00021369,2]
[346171477,1734763878823,-500.0,0.00021369,2]
[346171478,1734763878836,-1503.52,0.00021369,2]
[346171479,1734763878849,-826.38,0.00021369,2]
[346171480,1734763878862,-526.88,0.00021369,2]
[346171481,1734763878875,-500.0,0.00021369,2]
[346171482,1734763878887,-845.27,0.00021369,2]
[346171483,1734763878900,-1849.16,0.00021369,2]
[346171484,1734763878913,-623.84,0.00021369,2]
[346171485,1734763878926,-500.0,0.00021369,2]
[346171486,1734763878938,-658.52,0.00021369,2]
[346171487,1734763878951,-606.39,0.00021369,2]
[346171488,1734763878964,-500.0,0.00021369,2]
[346171489,1734763878976,-669.5,0.00021369,2]
[346171490,1734763878988,-5337.2,0.00021369,2]
[346171491,1734763879001,-1119.97,0.00021369,2]
[346171492,1734763879013,-1317.83,0.00021369,2]
[346171493,1734763879026,-3834.33,0.00021369,2]
[346171494,1734763879039,-1210.11,0.00021369,2]
[346171495,1734763879052,-500.0,0.00021369,2]
[346171496,1734763879064,-500.0,0.00021369,2]
[346171497,1734763879077,-3128.08,0.00021369,2]
[346171498,1734763879091,-500.0,0.00021369,2]
[346171499,1734763879103,-500.0,0.00021369,2]
[346171500,1734763879116,-3039.32,0.00021369,2]
[346171501,1734763879128,-543.49,0.00021369,2]
[346171502,1734763879141,-1847.86,0.00021369,2]
[346171503,1734763879154,-500.0,0.00021369,2]
[346171504,1734763879166,-805.91,0.00021369,2]
[346171505,1734763879179,-500.0,0.00021369,2]
[346171506,1734763879192,-623.92,0.00021369,2]
[346171507,1734763879204,-2527.65,0.00021369,2]
[346171508,1734763879217,-506.6,0.00021369,2]
[346171509,1734763879230,-500.0,0.00021369,2]
[346171510,1734763879243,-947.44,0.00021369,2]
[346171511,1734763879255,-944.1,0.00021369,2]
[346171512,1734763879271,-500.0,0.00021369,2]
[346171513,1734763879284,-500.0,0.00021369,2]
[346171514,1734763879296,-186.87623049,0.00021369,2]
[346171515,1734763879310,-500.0,0.00021369,2]
[346171516,1734763879324,-500.0,0.00021369,2]
[346171517,1734763879338,-861.65,0.00021369,2]
[346171518,1734763879351,-500.0,0.00021369,2]
[346171519,1734763879365,-540.73,0.00021369,2]
[346171520,1734763879377,-572.84,0.00021369,2]
[346171521,1734763879390,-582.48,0.00021369,2]
[346171522,1734763879403,-588.74,0.00021369,2]
[346171523,1734763879415,-500.0,0.00021369,2]
[346171524,1734763879428,-703.48,0.00021369,2]
[346171525,1734763879440,-168.86975316,0.00021369,2]
[346171526,1734763879453,-500.0,0.00021369,2]
[346171527,1734763879465,-901.63,0.00021369,2]
[346171528,1734763879477,-997.55,0.00021369,2]
[346171529,1734763879488,-799.68,0.00021369,2]
[346171530,1734763879500,-500.0,0.00021369,2]
[346171531,1734763879515,-561.21,0.00021369,2]
[346171532,1734763879527,-1229.39,0.00021369,2]
[346171533,1734763879540,-500.0,0.00021369,2]
[346171534,1734763879552,-632.53,0.00021369,2]
[346171535,1734763879564,-1931.34,0.00021369,2]
[346171536,1734763879578,-500.0,0.00021369,2]
[346171537,1734763879591,-1470.44,0.00021369,2]
[346171538,1734763879604,-500.0,0.00021369,2]